fUSD/lending_fUSD_20250208
["ID","MTS","AMOUNT","RATE_DAILY","PERIOD"]
[352338731,1739046640418,-817.79,0.00010406,2]
[352338733,1739046640427,-500.0,0.00010406,2]
[352338735,1739046640436,-667.03,0.00010406,2]
[352338737,1739046640445,-2335.34280996,0.00010406,2]
[352338740,1739046640465,-67.94719004,0.00010406,2]
[352338742,1739046640475,-516.8,0.00010406,2]
[352338744,1739046640484,-1080.22,0.00010406,2]
[352338746,1739046640494,-701.23,0.00010406,2]
[352338748,1739046640503,-1176.68,0.00010406,2]
[352338750,1739046640512,-1000.0,0.00010406,2]
[352338752,1739046640521,-603.07,0.00010406,2]
[352338754,1739046640531,-386.62317658,0.00010406,2]
[352338757,1739046640558,-686.04682342,0.00010406,2]
[352338759,1739046640569,-500.0,0.00010406,2]
[352338761,1739046640578,-1653.96,0.00010406,2]
[352338763,1739046640587,-506.61,0.00010406,2]
[352338765,1739046640597,-642.81,0.00010406,2]
[352338767,1739046640607,-503.45778951,0.00010406,2]
[352338769,1739046640619,-500.0,0.00010406,2]
[352338771,1739046640628,-688.21,0.00010406,2]
[352338773,1739046640638,-803.09,0.00010406,2]
[352338775,1739046640647,-883.99,0.00010406,2]
[352338777,1739046640657,-500.0,0.00010406,2]
[352338779,1739046640665,-500.0,0.00010406,2]
[352338781,1739046640675,-1665.02,0.00010406,2]
[352338783,1739046640685,-500.0,0.00010406,2]
[352338785,1739046640694,-500.0,0.00010406,2]
[352338787,1739046640704,-500.0,0.00010406,2]
[352338789,1739046640714,-704.47,0.00010406,2]
[352338791,1739046640724,-654.66,0.00010406,2]
[352338793,1739046640734,-854.43,0.00010406,2]
[352338795,1739046640743,-500.0,0.00010407,2]
[352338797,1739046640753,-500.0,0.00010407,2]
[352338799,1739046640762,-500.0,0.00010407,2]
[352338801,1739046640770,-500.0,0.00010407,2]
[352338803,1739046640780,-500.0,0.00010407,2]
[352338805,1739046640789,-500.0,0.00010407,2]
[352338807,1739046640798,-500.0,0.00010407,2]
[352338809,1739046640807,-515.97,0.00010407,2]
[352338811,1739046640817,-500.0,0.00010407,2]
[352338813,1739046640826,-500.0,0.00010407,2]
[352338815,1739046640836,-500.0,0.00010407,2]
[352338817,1739046640845,-500.0,0.00010407,2]
[352338819,1739046640855,-500.0,0.00010407,2]
[352338821,1739046640866,-500.0,0.00010407,2]
[352338823,1739046640876,-500.0,0.00010407,2]
[352338825,1739046640886,-500.0,0.00010407,2]
[352338827,1739046640896,-500.0,0.00010407,2]
[352338829,1739046640906,-500.0,0.00010407,2]
[352338831,1739046640915,-500.0,0.00010407,2]
[352338833,1739046640924,-500.0,0.00010407,2]
[352338835,1739046640934,-500.0,0.00010407,2]
[352338837,1739046640943,-500.0,0.00010407,2]
[352338839,1739046640954,-17.06721829,0.00010407,2]
[352339040,1739046642817,-500.0,9.999e-05,2]
[352339042,1739046642827,-263.37293195,0.00010136,2]
[352339053,1739046642929,-236.62706805,0.00010136,2]
[352339055,1739046642939,-500.0,0.00010273,2]
[352339057,1739046642949,-164.20252816,0.00010407,2]
[352339062,1739046642985,-318.73025355,0.00010407,2]
[352339064,1739046642996,-500.0,0.00010407,2]
[352339066,1739046643005,-500.0,0.00010407,2]
[352339068,1739046643015,-333.76974645,0.00010407,2]
[352339070,1739046643027,-166.23025355,0.00010407,2]
[352339072,1739046643036,-500.0,0.00010407,2]
[352339074,1739046643046,-500.0,0.00010407,2]
[352339076,1739046643055,-500.0,0.00010407,2]
[352339078,1739046643065,-500.0,0.00010407,2]
[352339080,1739046643074,-500.0,0.00010407,2]
[352339081,1739046643083,-353.76974645,0.00010407,2]
[352339352,1739046645775,-903.15,9.999e-05,2]
[352339354,1739046645784,-256.85,0.00010136,2]
[352339357,1739046645834,-646.3,0.00010136,2]
[352339358,1739046645843,-124.55907999,0.00010273,2]
[352339364,1739046646002,-778.59092001,0.00010273,2]
[352339366,1739046646011,-146.23025355,0.00010407,2]
[352339368,1739046646020,-500.0,0.00010407,2]
[352339370,1739046646030,-508.35,0.00010407,2]
[352339372,1739046646039,-500.0,0.00010407,2]
[352339374,1739046646048,-500.0,0.00010407,2]
[352339376,1739046646057,-509.29,0.00010407,2]
[352339396,1739046646066,-500.0,0.00010407,2]
[352339399,1739046646258,-561.36475744,0.00010407,2]
[352339492,1739046691301,150.0,0.0001852,120]
[352339493,1739046740365,369.0,0.0002,120]
[352339494,1739046750721,150.0,0.00019583,120]
[352339499,1739046904102,2500.0,9.999e-05,120]
[352339500,1739046904376,2500.0,0.00010136,120]
[352339501,1739046904641,2500.0,0.00010273,120]
[352339502,1739046904905,2500.0,0.0001041,120]
[352339503,1739046905157,1722.45688318,0.00010547,120]
[352339504,1739046930741,150.0,0.00019973,120]
[352339505,1739047034905,500.0,0.0002,120]
[352339506,1739047035179,500.0,0.0002,120]
[352339507,1739047050811,150.0,0.00019284,120]
[352339508,1739047290724,150.0,0.00018381,120]
[352339509,1739047351473,150.0,0.00019471,120]
[352339510,1739047410828,150.0,0.00019201,120]
[352339511,1739047470722,150.0,0.00019206,120]
[352339512,1739047650725,150.0,0.00019023,120]
[352339513,1739047710762,150.0,0.00019295,120]
[352339518,1739047830732,150.0,0.00019172,120]
[352339525,1739047831953,-866.28,8.219e-05,2]
[352339526,1739047831965,-800.0,8.857e-05,2]
[352339527,1739047831977,-500.0,9.26e-05,2]
[352339528,1739047831987,-250.0,9.344e-05,2]
[352339529,1739047832000,-633.71998966,9.344e-05,2]
[352339530,1739047832065,-1300.0,9.344e-05,2]
[352339531,1739047832180,-2161.39843761,9.344e-05,2]
[352339532,1739047832231,-5037.44157273,9.344e-05,2]
[352339533,1739047832242,-1000.0,9.345e-05,2]
[352339534,1739047832251,-169.13,9.5e-05,2]
[352339535,1739047832263,-218.98,9.5e-05,2]
[352339536,1739047832273,-1625.8,9.5e-05,2]
[352339537,1739047832284,-439.68,9.5e-05,2]
[352339538,1739047832296,-439.68,9.5e-05,2]
[352339539,1739047832308,-305.44,9.5e-05,2]
[352339540,1739047832319,-600.0,9.953e-05,2]
[352339541,1739047832329,-439.68,9.96e-05,2]
[352339542,1739047832339,-150.0,9.998e-05,2]
[352339544,1739047832348,-500.0,9.999e-05,2]
[352339546,1739047832359,-500.0,9.999e-05,2]
[352339548,1739047832370,-500.0,9.999e-05,2]
[352339550,1739047832385,-500.0,9.999e-05,2]
[352339552,1739047832398,-500.0,9.999e-05,2]
[352339554,1739047832409,-500.0,9.999e-05,2]
[352339557,1739047832420,-500.0,9.999e-05,2]
[352339558,1739047832431,-500.0,9.999e-05,2]
[352339560,1739047832441,-500.0,9.999e-05,2]
[352339562,1739047832451,-500.0,9.999e-05,2]
[352339563,1739047832462,-500.0,9.999e-05,2]
[352339566,1739047832472,-500.0,9.999e-05,2]
[352339568,1739047832483,-500.0,9.999e-05,2]
[352339570,1739047832497,-500.0,9.999e-05,2]
[352339572,1739047832507,-500.0,9.999e-05,2]
[352339573,1739047832518,-500.0,9.999e-05,2]
[352339574,1739047832529,-500.0,9.999e-05,2]
[352339575,1739047832541,-500.0,9.999e-05,2]
[352339576,1739047832556,-500.0,9.999e-05,2]
[352339577,1739047832568,-500.0,9.999e-05,2]
[352339579,1739047832579,-500.0,9.999e-05,2]
[352339580,1739047832590,-500.0,9.999e-05,2]
[352339581,1739047832601,-500.0,9.999e-05,2]
[352339582,1739047832612,-500.0,9.999e-05,2]
[352339583,1739047832623,-500.0,9.999e-05,2]
[352339584,1739047832634,-500.0,9.999e-05,2]
[352339585,1739047832645,-500.0,9.999e-05,2]
[352339586,1739047832657,-500.0,9.999e-05,2]
[352339587,1739047832667,-500.0,9.999e-05,2]
[352339588,1739047832678,-500.0,9.999e-05,2]
[352339589,1739047832689,-500.0,9.999e-05,2]
[352339590,1739047832701,-500.0,9.999e-05,2]
[352339591,1739047832712,-533.21274673,9.999e-05,2]
[352339592,1739047832722,-500.0,9.999e-05,2]
[352339593,1739047832734,-500.0,9.999e-05,2]
[352339594,1739047832745,-500.0,9.999e-05,2]
[352339595,1739047832756,-500.0,9.999e-05,2]
[352339596,1739047832767,-500.0,9.999e-05,2]
[352339597,1739047832777,-500.0,9.999e-05,2]
[352339598,1739047832789,-500.0,9.999e-05,2]
[352339599,1739047832799,-500.0,9.999e-05,2]
[352339600,1739047832809,-500.0,9.999e-05,2]
[352339601,1739047832820,-500.0,9.999e-05,2]
[352339602,1739047832830,-500.0,9.999e-05,2]
[352339603,1739047832841,-500.0,9.999e-05,2]
[352339604,1739047832851,-500.95302455,9.999e-05,2]
[352339605,1739047832862,-500.0,9.999e-05,2]
[352339606,1739047832873,-500.0,9.999e-05,2]
[352339607,1739047832883,-500.0,9.999e-05,2]
[352339608,1739047832893,-500.0,9.999e-05,2]
[352339609,1739047832904,-500.0,9.999e-05,2]
[352339610,1739047832914,-500.0,9.999e-05,2]
[352339611,1739047832925,-500.0,9.999e-05,2]
[352339612,1739047832935,-500.0,9.999e-05,2]
[352339613,1739047832950,-500.0,9.999e-05,2]
[352339614,1739047832961,-500.0,9.999e-05,2]
[352339615,1739047832971,-500.0,9.999e-05,2]
[352339616,1739047832982,-501.24997163,9.999e-05,2]
[352339617,1739047832993,-500.0,9.999e-05,2]
[352339618,1739047833004,-501.62463423,9.999e-05,2]
[352339619,1739047833015,-500.0,9.999e-05,2]
[352339620,1739047833026,-500.0,9.999e-05,2]
[352339621,1739047833037,-500.0,9.999e-05,2]
[352339622,1739047833048,-500.0,9.999e-05,2]
[352339623,1739047833060,-500.0,9.999e-05,2]
[352339624,1739047833071,-500.0,9.999e-05,2]
[352339625,1739047833082,-513.97,9.999e-05,2]
[352339626,1739047833096,-500.0,9.999e-05,2]
[352339627,1739047833108,-500.0,9.999e-05,2]
[352339628,1739047833119,-500.0,9.999e-05,2]
[352339629,1739047833130,-500.0,9.999e-05,2]
[352339630,1739047833141,-500.0,9.999e-05,2]
[352339631,1739047833153,-500.0,9.999e-05,2]
[352339632,1739047833166,-500.0,9.999e-05,2]
[352339633,1739047833178,-500.0,9.999e-05,2]
[352339634,1739047833190,-500.0,9.999e-05,2]
[352339635,1739047833201,-500.0,9.999e-05,2]
[352339636,1739047833212,-500.0,9.999e-05,2]
[352339637,1739047833223,-500.0,9.999e-05,2]
[352339638,1739047833233,-501.4207582,9.999e-05,2]
[352339639,1739047833244,-500.0,9.999e-05,2]
[352339640,1739047833255,-500.0,9.999e-05,2]
[352339641,1739047833265,-500.0,9.999e-05,2]
[352339642,1739047833276,-500.0,9.999e-05,2]
[352339643,1739047833287,-500.0,9.999e-05,2]
[352339644,1739047833297,-500.0,9.999e-05,2]
[352339645,1739047833308,-500.0,9.999e-05,2]
[352339646,1739047833321,-150.67069059,9.999e-05,2]
[352339647,1739047833333,-500.0,9.999e-05,2]
[352339648,1739047833345,-500.0,9.999e-05,2]
[352339649,1739047833356,-500.0,9.999e-05,2]
[352339650,1739047833368,-500.0,9.999e-05,2]
[352339651,1739047833378,-500.0,9.999e-05,2]
[352339652,1739047833390,-500.0,9.999e-05,2]
[352339653,1739047833402,-500.0,9.999e-05,2]
[352339654,1739047833413,-500.0,9.999e-05,2]
[352339655,1739047833424,-500.0,9.999e-05,2]
[352339656,1739047833435,-500.0,9.999e-05,2]
[352339657,1739047833446,-500.0,9.999e-05,2]
[352339658,1739047833456,-500.0,9.999e-05,2]
[352339659,1739047833468,-500.0,9.999e-05,2]
[352339660,1739047833479,-500.0,9.999e-05,2]
[352339661,1739047833489,-500.0,9.999e-05,2]
[352339662,1739047833501,-500.0,9.999e-05,2]
[352339663,1739047833512,-500.0,9.999e-05,2]
[352339664,1739047833522,-500.0,9.999e-05,2]
[352339665,1739047833534,-500.0,9.999e-05,2]
[352339666,1739047833545,-500.0,9.999e-05,2]
[352339667,1739047833555,-500.0,9.999e-05,2]
[352339668,1739047833566,-500.0,9.999e-05,2]
[352339669,1739047833576,-500.0,9.999e-05,2]
[352339670,1739047833588,-500.0,9.999e-05,2]
[352339671,1739047833599,-500.0,9.999e-05,2]
[352339672,1739047833610,-500.0,9.999e-05,2]
[352339673,1739047833621,-500.0,9.999e-05,2]
[352339674,1739047833633,-500.0,9.999e-05,2]
[352339675,1739047833643,-529.12,9.999e-05,2]
[352339676,1739047833654,-500.0,9.999e-05,2]
[352339677,1739047833666,-501.11,9.999e-05,2]
[352339678,1739047833677,-500.0,9.999e-05,2]
[352339679,1739047833689,-500.0,9.999e-05,2]
[352339680,1739047833700,-500.0,9.999e-05,2]
[352339681,1739047833711,-500.0,9.999e-05,2]
[352339682,1739047833722,-500.0,9.999e-05,2]
[352339683,1739047833733,-500.0,9.999e-05,2]
[352339684,1739047833743,-500.0,9.999e-05,2]
[352339685,1739047833754,-500.0,9.999e-05,2]
[352339686,1739047833765,-500.0,9.999e-05,2]
[352339687,1739047833776,-500.0,9.999e-05,2]
[352339688,1739047833787,-500.0,9.999e-05,2]
[352339689,1739047833798,-500.0,9.999e-05,2]
[352339690,1739047833808,-500.0,9.999e-05,2]
[352339691,1739047833819,-500.0,9.999e-05,2]
[352339692,1739047833830,-500.0,9.999e-05,2]
[352339693,1739047833841,-500.0,9.999e-05,2]
[352339694,1739047833851,-500.0,9.999e-05,2]
[352339695,1739047833862,-500.0,9.999e-05,2]
[352339696,1739047833873,-500.0,9.999e-05,2]
[352339697,1739047833884,-500.0,9.999e-05,2]
[352339698,1739047833897,-500.0,9.999e-05,2]
[352339699,1739047833908,-500.0,9.999e-05,2]
[352339700,1739047833919,-500.0,9.999e-05,2]
[352339701,1739047833931,-500.0,9.999e-05,2]
[352339702,1739047833943,-500.0,9.999e-05,2]
[352339703,1739047833956,-500.0,9.999e-05,2]
[352339704,1739047833967,-500.0,9.999e-05,2]
[352339705,1739047833978,-500.0,9.999e-05,2]
[352339706,1739047833990,-500.0,9.999e-05,2]
[352339707,1739047834000,-500.0,9.999e-05,2]
[352339708,1739047834011,-762.4,9.999e-05,2]
[352339709,1739047834021,-500.0,9.999e-05,2]
[352339710,1739047834032,-500.0,9.999e-05,2]
[352339711,1739047834042,-436.07576067,9.999e-05,2]
[352339712,1739047834052,-507.3,9.999e-05,2]
[352339713,1739047834063,-500.0,9.999e-05,2]
[352339714,1739047834073,-500.0,9.999e-05,2]
[352339715,1739047834293,-500.0,9.999e-05,2]
[352339716,1739047834305,-508.13,9.999e-05,2]
[352339717,1739047834316,-500.0,9.999e-05,2]
[352339718,1739047834328,-556.82,9.999e-05,2]
[352339719,1739047834339,-617.31,9.999e-05,2]
[352339720,1739047834349,-500.0,9.999e-05,2]
[352339721,1739047834360,-500.0,9.999e-05,2]
[352339722,1739047834371,-555.89,9.999e-05,2]
[352339723,1739047834382,-500.0,9.999e-05,2]
[352339724,1739047834394,-500.0,9.999e-05,2]
[352339725,1739047834406,-500.0,9.999e-05,2]
[352339726,1739047834418,-500.0,9.999e-05,2]
[352339727,1739047834429,-500.0,0.00010132,2]
[352339728,1739047834440,-919.03,0.00010135,2]
[352339729,1739047834451,-911.64,0.00010135,2]
[352339730,1739047834462,-500.0,0.00010135,2]
[352339731,1739047834474,-861.77,0.00010135,2]
[352339732,1739047834486,-612.44,0.00010135,2]
[352339733,1739047834497,-549.44,0.00010135,2]
[352339734,1739047834508,-573.901302,0.00010135,2]
[352339735,1739047834521,-500.0,0.00010135,2]
[352339736,1739047834532,-887.52,0.00010135,2]
[352339737,1739047834543,-575.78,0.00010135,2]
[352339738,1739047834555,-500.0,0.00010135,2]
[352339739,1739047834566,-546.680985,0.00010135,2]
[352339740,1739047834579,-161.399216,0.00010135,2]
[352339741,1739047834590,-500.0,0.00010135,2]
[352339742,1739047834601,-500.0,0.00010135,2]
[352339743,1739047834613,-500.0,0.00010135,2]
[352339744,1739047834623,-793.94,0.00010135,2]
[352339745,1739047834634,-639.6,0.00010135,2]
[352339746,1739047834646,-802.68,0.00010135,2]
[352339747,1739047834657,-785.41,0.00010135,2]
[352339748,1739047834668,-730.88,0.00010135,2]
[352339749,1739047834678,-984.4,0.00010135,2]
[352339750,1739047834689,-1074.17,0.00010135,2]
[352339751,1739047834699,-2358.76,0.00010135,2]
[352339752,1739047834710,-1166.08,0.00010135,2]
[352339753,1739047834720,-1051.95,0.00010135,2]
[352339754,1739047834730,-1573.48,0.00010135,2]
[352339755,1739047834741,-687.08,0.00010135,2]
[352339756,1739047835116,-867.53,0.00010135,2]
[352339757,1739047835134,-153.592336,0.00010135,2]
[352339758,1739047835145,-506.06,0.00010135,2]
[352339759,1739047835155,-1593.45,0.00010135,2]
[352339760,1739047835164,-792.49,0.00010135,2]
[352339761,1739047835174,-687.43,0.00010135,2]
[352339762,1739047835184,-824.89,0.00010135,2]
[352339763,1739047835194,-500.0,0.00010136,2]
[352339764,1739047835203,-500.0,0.00010136,2]
[352339765,1739047835213,-500.0,0.00010136,2]
[352339766,1739047835223,-500.0,0.00010136,2]
[352339767,1739047835232,-500.0,0.00010136,2]
[352339768,1739047835242,-500.0,0.00010136,2]
[352339769,1739047835251,-500.0,0.00010136,2]
[352339770,1739047835260,-575.01323412,0.00010136,2]
[352339771,1739047835269,-500.0,0.00010136,2]
[352339772,1739047835280,-413.48636676,0.00010136,2]
[352339773,1739047835290,-500.0,0.00010136,2]
[352339774,1739047835299,-500.0,0.00010136,2]
[352339775,1739047835308,-500.0,0.00010136,2]
[352339776,1739047835318,-500.0,0.00010136,2]
[352339777,1739047835327,-500.0,0.00010136,2]
[352339778,1739047835336,-500.0,0.00010136,2]
[352339779,1739047835346,-500.0,0.00010136,2]
[352339780,1739047835355,-500.0,0.00010136,2]
[352339781,1739047835365,-513.97,0.00010136,2]
[352339782,1739047835374,-500.0,0.00010136,2]
[352339783,1739047835385,-500.0,0.00010136,2]
[352339784,1739047835395,-500.0,0.00010136,2]
[352339785,1739047835405,-500.0,0.00010136,2]
[352339786,1739047835415,-500.0,0.00010136,2]
[352339787,1739047835426,-500.0,0.00010136,2]
[352339788,1739047835435,-500.0,0.00010136,2]
[352339789,1739047835444,-500.0,0.00010136,2]
[352339790,1739047835453,-500.0,0.00010136,2]
[352339791,1739047835462,-500.0,0.00010136,2]
[352339792,1739047835471,-617.58,0.00010136,2]
[352339793,1739047835481,-500.0,0.00010136,2]
[352339794,1739047835490,-500.0,0.00010136,2]
[352339795,1739047835499,-500.0,0.00010136,2]
[352339796,1739047835509,-500.0,0.00010136,2]
[352339797,1739047835518,-609.22,0.00010136,2]
[352339798,1739047835528,-500.0,0.00010136,2]
[352339799,1739047835537,-500.0,0.00010136,2]
[352339800,1739047835547,-500.0,0.00010136,2]
[352339801,1739047835556,-500.0,0.00010136,2]
[352339802,1739047835566,-500.0,0.00010136,2]
[352339803,1739047835575,-500.0,0.00010136,2]
[352339804,1739047835585,-500.0,0.00010136,2]
[352339805,1739047835595,-500.0,0.00010136,2]
[352339806,1739047835605,-500.0,0.00010136,2]
[352339807,1739047835615,-166.34256812,0.00010136,2]
[352339808,1739047835624,-500.0,0.00010136,2]
[352339809,1739047835635,-500.0,0.00010136,2]
[352339810,1739047835644,-500.0,0.00010136,2]
[352339811,1739047835654,-464.13057955,0.00010136,2]
[352339812,1739047835664,-500.0,0.00010136,2]
[352339813,1739047835673,-500.0,0.00010136,2]
[352339814,1739047835683,-500.0,0.00010136,2]
[352339815,1739047835693,-500.0,0.00010136,2]
[352339816,1739047835702,-500.0,0.00010136,2]
[352339817,1739047835712,-500.0,0.00010136,2]
[352339818,1739047835722,-500.0,0.00010136,2]
[352339819,1739047835731,-762.4,0.00010136,2]
[352339820,1739047835740,-500.0,0.00010136,2]
[352339821,1739047835749,-500.0,0.00010136,2]
[352339822,1739047835759,-507.3,0.00010136,2]
[352339823,1739047835769,-500.0,0.00010136,2]
[352339824,1739047835778,-500.0,0.00010136,2]
[352339825,1739047835788,-508.13,0.00010136,2]
[352339826,1739047835798,-500.0,0.00010136,2]
[352339827,1739047835807,-556.82,0.00010136,2]
[352339828,1739047835817,-617.31,0.00010136,2]
[352339829,1739047835826,-500.0,0.00010136,2]
[352339830,1739047835835,-500.0,0.00010136,2]
[352339831,1739047835845,-555.89,0.00010136,2]
[352339832,1739047835854,-500.0,0.00010136,2]
[352339833,1739047835863,-500.0,0.00010136,2]
[352339834,1739047835874,-500.0,0.00010136,2]
[352339835,1739047835883,-500.0,0.00010136,2]
[352339836,1739047835892,-800.0,0.00010227,2]
[352339837,1739047835902,-150.0,0.00010238,2]
[352339838,1739047835912,-985.27,0.00010238,2]
[352339839,1739047835922,-500.0,0.0001027,2]
[352339840,1739047835932,-500.0,0.0001027,2]
[352339841,1739047835943,-500.0,0.0001027,2]
[352339842,1739047835955,-500.0,0.0001027,2]
[352339843,1739047835964,-500.0,0.0001027,2]
[352339844,1739047835973,-500.0,0.0001027,2]
[352339845,1739047835983,-500.0,0.0001027,2]
[352339846,1739047835994,-500.0,0.0001027,2]
[352339847,1739047836004,-500.0,0.0001027,2]
[352339848,1739047836014,-500.0,0.0001027,2]
[352339849,1739047836024,-500.0,0.0001027,2]
[352339850,1739047836034,-500.0,0.0001027,2]
[352339851,1739047836044,-500.0,0.0001027,2]
[352339852,1739047836053,-500.0,0.0001027,2]
[352339853,1739047836062,-500.0,0.0001027,2]
[352339854,1739047836072,-500.0,0.0001027,2]
[352339855,1739047836082,-500.0,0.0001027,2]
[352339856,1739047836092,-500.0,0.0001027,2]
[352339857,1739047836101,-500.0,0.0001027,2]
[352339858,1739047836111,-500.0,0.0001027,2]
[352339859,1739047836120,-500.0,0.0001027,2]
[352339860,1739047836130,-500.0,0.0001027,2]
[352339861,1739047836139,-500.0,0.0001027,2]
[352339862,1739047836150,-500.0,0.0001027,2]
[352339863,1739047836159,-500.0,0.0001027,2]
[352339864,1739047836168,-192.98785372,0.0001027,2]
[352339865,1739047836177,-500.0,0.0001027,2]
[352339866,1739047836187,-500.0,0.0001027,2]
[352339867,1739047836196,-500.0,0.0001027,2]
[352339868,1739047836206,-714.87,0.00010271,2]
[352339869,1739047836215,-500.0,0.00010271,2]
[352339870,1739047836225,-653.2,0.00010271,2]
[352339871,1739047836234,-1138.12,0.00010271,2]
[352339872,1739047836243,-581.42,0.00010271,2]
[352339873,1739047836253,-1330.53,0.00010271,2]
[352339874,1739047836262,-770.71,0.00010271,2]
[352339875,1739047836271,-1065.27,0.00010271,2]
[352339876,1739047836281,-500.0,0.00010271,2]
[352339877,1739047836290,-652.5,0.00010271,2]
[352339878,1739047836299,-500.0,0.00010271,2]
[352339879,1739047836308,-1134.03,0.00010271,2]
[352339880,1739047836318,-1107.51,0.00010271,2]
[352339881,1739047836328,-526.37,0.00010271,2]
[352339882,1739047836337,-500.0,0.00010271,2]
[352339883,1739047836347,-642.67,0.00010271,2]
[352339884,1739047836356,-500.0,0.00010271,2]
[352339885,1739047836365,-500.0,0.00010271,2]
[352339886,1739047836374,-838.68,0.00010271,2]
[352339887,1739047836383,-866.97,0.00010271,2]
[352339888,1739047836392,-902.98,0.00010271,2]
[352339889,1739047836402,-500.0,0.00010271,2]
[352339890,1739047836412,-546.68,0.00010271,2]
[352339891,1739047836421,-649.99,0.00010271,2]
[352339892,1739047836431,-592.87,0.00010271,2]
[352339893,1739047836441,-1049.19,0.00010271,2]
[352339894,1739047836450,-500.0,0.00010271,2]
[352339895,1739047836459,-694.04,0.00010271,2]
[352339896,1739047836469,-1044.37,0.00010271,2]
[352339897,1739047836478,-522.16,0.00010271,2]
[352339898,1739047836488,-986.8,0.00010271,2]
[352339899,1739047836498,-557.23,0.00010271,2]
[352339900,1739047836507,-500.0,0.00010271,2]
[352339901,1739047836516,-526.39,0.00010271,2]
[352339902,1739047836525,-664.86,0.00010271,2]
[352339903,1739047836535,-500.0,0.00010271,2]
[352339904,1739047836544,-533.12,0.00010271,2]
[352339905,1739047836554,-1195.05,0.00010271,2]
[352339906,1739047836563,-500.0,0.00010271,2]
[352339907,1739047836572,-500.0,0.00010271,2]
[352339908,1739047836582,-925.73,0.00010271,2]
[352339909,1739047836592,-500.0,0.00010271,2]
[352339910,1739047836601,-500.0,0.00010271,2]
[352339911,1739047836609,-732.26,0.00010271,2]
[352339912,1739047836618,-500.0,0.00010271,2]
[352339913,1739047836627,-500.0,0.00010271,2]
[352339914,1739047836637,-500.0,0.00010271,2]
[352339915,1739047836647,-500.0,0.00010271,2]
[352339916,1739047836656,-748.6,0.00010271,2]
[352339917,1739047836665,-500.0,0.00010272,2]
[352339918,1739047836675,-606.57,0.00010272,2]
[352339919,1739047836684,-500.0,0.00010272,2]
[352339920,1739047836694,-500.0,0.00010272,2]
[352339921,1739047836704,-427.71197663,0.00010272,2]
[352339922,1739047836713,-500.0,0.00010272,2]
[352339923,1739047836722,-500.0,0.00010272,2]
[352339924,1739047836731,-500.0,0.00010272,2]
[352339925,1739047836741,-500.0,0.00010272,2]
[352339926,1739047836749,-500.0,0.00010272,2]
[352339927,1739047836759,-500.0,0.00010272,2]
[352339928,1739047836768,-500.0,0.00010272,2]
[352339929,1739047836777,-500.0,0.00010272,2]
[352339930,1739047836786,-617.46,0.00010272,2]
[352339931,1739047836795,-500.0,0.00010272,2]
[352339932,1739047836804,-500.0,0.00010272,2]
[352339933,1739047836814,-500.0,0.00010272,2]
[352339934,1739047836824,-629.87,0.00010272,2]
[352339935,1739047836833,-500.0,0.00010272,2]
[352339936,1739047836843,-500.0,0.00010272,2]
[352339937,1739047836853,-500.0,0.00010272,2]
[352339938,1739047836862,-500.0,0.00010272,2]